[Event "9th Bangabandhu Team Mixed 2021"]
[Site "Dhaka"]
[Date "2021.04.04"]
[Round "1.11"]
[White "Zia, Tahsin Tajwar"]
[Black "Mohammed, Kutubuddin"]
[Result "1-0"]
[ECO "A43"]
[WhiteElo "2170"]
[BlackElo "2057"]
[Annotator "NA"]
[PlyCount "101"]
[EventDate "2021.04.04"]
[EventType "team-tourn"]
[EventCountry "BAN"]
[SourceTitle "playchess.com"]
[Source "ChessBase"]
[SourceQuality "1"]
[TimeControl "1500+10"]

1. d4 {[%emt 0:25:10]} Nf6 {[%emt 0:25:10]} 2. Nf3 {[%emt 0:00:10]} c5 {[%emt 0:00:10]} 3. d5 {[%emt 0:00:10]} g6 {[%emt 0:00:10]} 4. Nc3 {[%emt 0:00:10]} Bg7 {[%emt 0:00:10]} 5. e4 {[%emt 0:00:10]} d6 {[%emt 0:00:10]} 6. Nd2 {[%emt 0:00:10]} a6 {[%emt 0:00:10]} 7. a4 {[%emt 0:00:10]} O-O {[%emt 0:00:10]} 8. Be2 {[%emt 0:00:10]} e6 {[%emt 0:00:10]} 9. O-O {[%emt 0:00:10]} exd5 {[%emt 0:00:10]} 10. exd5 {[%emt 0:00:10]} Re8 {[%emt 0:00:10]} 11. Nc4 {[%emt 0:00:10]} Ne4 {[%emt 0:00:10]} 12. Nxe4 {[%emt 0:00:10]} Rxe4 {[%emt 0:00:10]} 13. c3 {[%emt 0:00:10]} Qc7 {[%emt 0:00:10]} 14. Bd3 {[%emt 0:00:10]} Re8 {[%emt 0:00:10]} 15. Bf4 {[%emt 0:00:10]} Bf8 {[%emt 0:00:10]} 16. Qf3 {[%emt 0:00:10]} Nd7 {[%emt 0:00:10]} 17. Qg3 {[%emt 0:00:10]} Ne5 {[%emt 0:00:10]} 18. Rfe1 {[%emt 0:00:10]} f6 {[%emt 0:00:10]} 19. Bxe5 {[%emt 0:00:10]} fxe5 {[%emt 0:00:10]} 20. f4 {[%emt 0:00:10]} exf4 {[%emt 0:00:10]} 21. Qxf4 {[%emt 0:00:10]} Qf7 {[%emt 0:00:10]} 22. Qg3 {[%emt 0:00:10]} Rxe1+ {[%emt 0:00:10]} 23. Rxe1 {[%emt 0:00:10]} Bf5 {[%emt 0:00:10]} 24. Bxf5 {[%emt 0:00:10]} Qxf5 {[%emt 0:00:10]} 25. Rf1 {[%emt 0:00:10]} Qe4 {[%emt 0:00:10]} 26. Nb6 {[%emt 0:00:10]} Re8 {[%emt 0:00:10]} 27. Nd7 {[%emt 0:00:10]} Bg7 {[%emt 0:00:10]} 28. Qxd6 {[%emt 0:00:10]} Qe3+ {[%emt 0:00:10]} 29. Kh1 $2 {[%emt 0:00:10]} (29. Rf2 $11) 29... Qe2 {[%emt 0:00:10]} 30. Qf4 {[%emt 0:00:10]} Qe7 {[%emt 0:00:10]} 31. Nb6 {[%emt 0:00:10]} Rf8 {[%emt 0:00:10]} 32. Qc4 {[%emt 0:00:10]} Rxf1+ {[%emt 0:00:10]} 33. Qxf1 {[%emt 0:00:10]} Be5 {[%emt 0:00:10]} 34. Qe1 {[%emt 0:00:10]} Qg5 {[%emt 0:00:10]} 35. Nc4 {[%emt 0:00:10]} Bxh2 $2 {[%emt 0:00:10]} 36. Kxh2 {[%emt 0:00:10]} Qf4+ {[%emt 0:00:10]} (36... Qxd5 $142 37. Qe8+ Kg7 38. Qe7+ Qf7 39. Qxc5 h5 40. Qd4+ Kh7) 37. Kg1 {[%emt 0:00:10]} Qxc4 {[%emt 0:00:10]} 38. Qe8+ {[%emt 0:00:10]} Kg7 {[%emt 0:00:10]} 39. d6 {[%emt 0:00:10]} Qf4 {[%emt 0:00:10]} 40. d7 {[%emt 0:00:10]} Qc1+ {[%emt 0:00:10]} 41. Kf2 {[%emt 0:00:10]} Qf4+ {[%emt 0:00:10]} 42. Ke2 {[%emt 0:00:10]} Qg4+ {[%emt 0:00:10]} 43. Ke1 {[%emt 0:00:10]} Qh4+ {[%emt 0:00:10]} 44. Kd2 {[%emt 0:00:10]} Qf2+ {[%emt 0:00:10]} 45. Kd3 {[%emt 0:00:10]} Qf1+ {[%emt 0:00:10]} 46. Kc2 {[%emt 0:00:10]} Qxg2+ {[%emt 0:00:10]} 47. Kb3 {[%emt 0:00:10]} Qd5+ {[%emt 0:00:10]} 48. Ka3 {[%emt 0:00:10]} b5 {[%emt 0:00:10]} 49. axb5 {[%emt 0:00:10]} axb5 {[%emt 0:00:10]} 50. d8=Q {[%emt 0:00:10]} b4+ {[%emt 0:00:10]} 51. Ka4 {[%emt 0:00:10]} 1-0

[Event "9th Bangabandhu Team Mixed 2021"]
[Site "Dhaka"]
[Date "2021.04.04"]
[Round "1.12"]
[White "Parveen, Tanima"]
[Black "Sultana, Sharmin Shirin"]
[Result "1/2-1/2"]
[ECO "B22"]
[WhiteElo "1984"]
[BlackElo "2006"]
[Annotator "NA"]
[PlyCount "34"]
[EventDate "2021.04.04"]
[EventType "team-tourn"]
[EventCountry "BAN"]
[SourceTitle "playchess.com"]
[Source "ChessBase"]
[SourceQuality "1"]
[TimeControl "1500+10"]

1. e4 {[%emt 0:25:10]} c5 {[%emt 0:25:10]} 2. c3 {[%emt 0:00:10]} d5 {[%emt 0:00:10]} 3. exd5 {[%emt 0:00:10]} Qxd5 {[%emt 0:00:10]} 4. d4 {[%emt 0:00:10]} e6 {[%emt 0:00:10]} 5. Nf3 {[%emt 0:00:10]} Nf6 {[%emt 0:00:10]} 6. Be2 {[%emt 0:00:10]} Nc6 {[%emt 0:00:10]} 7. O-O {[%emt 0:00:10]} cxd4 {[%emt 0:00:10]} 8. cxd4 {[%emt 0:00:10]} Be7 {[%emt 0:00:10]} 9. Nc3 {[%emt 0:00:10]} Qd6 {[%emt 0:00:10]} 10. h3 {[%emt 0:00:10]} O-O {[%emt 0:00:10]} 11. a3 {[%emt 0:00:10]} b6 {[%emt 0:00:10]} 12. Be3 {[%emt 0:00:10]} Bb7 {[%emt 0:00:10]} 13. Rc1 {[%emt 0:00:10]} Rac8 {[%emt 0:00:10]} 14. b4 {[%emt 0:00:10]} Rfd8 {[%emt 0:00:10]} 15. Qb3 {[%emt 0:00:10]} h6 {[%emt 0:00:10]} 16. Rfd1 {[%emt 0:00:10]} Qb8 {[%emt 0:00:10]} 17. Bc4 {[%emt 0:00:10]} Bd6 {[%emt 0:00:10]} 1/2-1/2

[Event "9th Bangabandhu Team Mixed 2021"]
[Site "Dhaka"]
[Date "2021.04.04"]
[Round "1.12"]
[White "Afrin Jahan, Munia"]
[Black "Noshin, Anjum"]
[Result "*"]
[ECO "B22"]
[WhiteElo "1647"]
[BlackElo "1912"]
[Annotator "NA RC"]
[PlyCount "33"]
[EventDate "2021.04.04"]
[EventType "team-tourn"]
[EventCountry "BAN"]
[SourceTitle "playchess.com"]
[Source "ChessBase"]
[SourceQuality "1"]
[TimeControl "1500+10"]

1. e4 {[%emt 0:25:10]} c5 {[%emt 0:25:10]} 2. c3 {[%emt 0:00:10]} d5 {[%emt 0:00:10]} 3. exd5 {[%emt 0:00:10]} Qxd5 {[%emt 0:00:10]} 4. d4 {[%emt 0:00:10]} e6 {[%emt 0:00:10]} 5. Nf3 {[%emt 0:00:10]} Nf6 {[%emt 0:00:10]} 6. Be2 {[%emt 0:00:10]} Nc6 {[%emt 0:00:10]} 7. O-O {[%emt 0:00:10]} cxd4 {[%emt 0:00:10]} 8. cxd4 {[%emt 0:00:10]} Be7 {[%emt 0:00:10]} 9. Nc3 {[%emt 0:00:10]} Qd6 {[%emt 0:00:10]} 10. h3 {[%emt 0:00:10]} O-O {[%emt 0:00:10]} 11. a3 {[%emt 0:00:10]} b6 {[%emt 0:00:10]} 12. Be3 {[%emt 0:00:10]} Bb7 {[%emt 0:00:10]} 13. Rc1 {[%emt 0:00:10]} Rac8 {[%emt 0:00:10]} 14. b4 {[%emt 0:00:10]} Rfd8 {[%emt 0:00:10]} 15. Qb3 {[%emt 0:00:10]} h6 {[%emt 0:00:10]} 16. Rfd1 {[%emt 0:00:10]} Qb8 {[%emt 0:00:10]} 17. Bc4 {[%emt 0:00:10]} *

[Event "9th Bangabandhu Team Mixed 2021"]
[Site "Dhaka"]
[Date "2021.04.07"]
[Round "4.8"]
[White "Nusrat Jahan, Alo"]
[Black "Kazi Zarin, Tasnim"]
[Result "0-1"]
[ECO "D10"]
[WhiteElo "1712"]
[BlackElo "1790"]
[Annotator "NA RC"]
[PlyCount "138"]
[EventDate "2021.04.04"]
[EventType "team-tourn"]
[EventCountry "BAN"]
[SourceTitle "playchess.com"]
[Source "ChessBase"]
[SourceQuality "1"]
[TimeControl "5400+30"]

1. d4 {[%emt 0:00:00]} Nf6 {[%emt 0:00:00]} 2. Bf4 {[%emt 0:00:00]} c6 {[%emt 0:00:00]} 3. c4 {[%emt 0:00:00]} d5 {[%emt 0:00:00]} 4. e3 {[%emt 0:00:17]} e6 {[%emt 0:00:25]} 5. a3 {[%emt 0:00:55]} Nbd7 {[%emt 0:00:27]} 6. Nf3 {[%emt 0:00:23]} Be7 {[%emt 0:00:16]} 7. Bd3 {[%emt 0:00:43]} dxc4 {[%emt 0:00:07]} 8. Bxc4 {[%emt 0:00:10]} b5 {[%emt 0:00:05]} 9. Be2 {[%emt 0:00:52]} a6 {[%emt 0:00:17]} 10. Nc3 {[%emt 0:01:14]} Bb7 {[%emt 0:00:55]} 11. O-O {[%emt 0:01:41]} c5 {[%emt 0:02:48]} 12. dxc5 {[%emt 0:07:14]} Nxc5 {[%emt 0:00:14]} 13. Qc2 {[%emt 0:02:46]} O-O {[%emt 0:01:40]} 14. Rfd1 {[%emt 0:05:53]} Qb6 {[%emt 1:29:46]} 15. Rac1 {[%emt 0:03:31]} Rac8 {[%emt 0:00:00]} 16. Nd4 {[%emt 0:09:18]} Nce4 {[%emt 0:00:00]} 17. Qb3 {[%emt 0:05:20]} Nxc3 {[%emt 0:00:00]} 18. Rxc3 {[%emt 0:04:19]} Bd5 {[%emt 0:00:00]} 19. Qc2 {[%emt 0:02:03]} Qb7 {[%emt 0:00:00]} 20. f3 {[%emt 0:04:47]} Nh5 {[%emt 0:00:00]} 21. Bg3 {[%emt 0:04:12]} Rxc3 {[%emt 0:00:00]} 22. Qxc3 {[%emt 0:00:50]} Nxg3 {[%emt 0:00:00]} 23. hxg3 {[%emt 0:01:22]} Rc8 {[%emt 0:00:00]} 24. Qd2 {[%emt 0:01:49]} Bc5 {[%emt 0:00:00]} 25. Kh2 {[%emt 0:03:32]} Qb6 {[%emt 0:05:30]} 26. e4 {[%emt 0:02:38]} Bb7 {[%emt 0:00:00]} 27. Nb3 {[%emt 0:02:44]} Be7 {[%emt 0:00:00]} 28. Qd7 {[%emt 0:06:25]} Qc7 {[%emt 0:00:00]} 29. Na5 {[%emt 0:03:41]} Ba8 {[%emt 0:00:00]} 30. Qxc7 {[%emt 0:11:08]} Rxc7 {[%emt 0:00:00]} 31. Nb3 {[%emt 0:01:44]} g6 {[%emt 0:00:00]} 32. Rc1 {[%emt 0:01:22]} Rxc1 {[%emt 0:00:00]} 33. Nxc1 {[%emt 0:00:02]} Bf6 {[%emt 0:00:00]} 34. Nd3 {[%emt 0:00:17]} Bd4 {[%emt 0:00:00]} 35. b3 {[%emt 0:02:19]} f5 {[%emt 0:00:00]} 36. exf5 {[%emt 0:12:29]} exf5 {[%emt 0:00:00]} 37. Nb4 {[%emt 0:00:00]} Bb7 {[%emt 0:00:00]} 38. a4 {[%emt 0:00:00]} bxa4 {[%emt 0:00:00]} 39. bxa4 {[%emt 0:00:00]} a5 {[%emt 0:00:00]} 40. Nc2 {[%emt 0:00:00]} Bc5 {[%emt 0:00:00]} 41. Bb5 {[%emt 0:00:00]} Kf7 {[%emt 0:00:00]} 42. Kh3 {[%emt 0:00:00]} Ke6 {[%emt 0:00:00]} 43. g4 {[%emt 0:00:00]} f4 {[%emt 0:00:00]} 44. g3 {[%emt 0:00:59]} g5 {[%emt 0:00:00]} 45. gxf4 {[%emt 0:01:17]} gxf4 {[%emt 0:00:00]} 46. Ne1 {[%emt 0:01:05]} Bf2 {[%emt 0:00:00]} 47. Nd3 {[%emt 0:00:24]} Be3 {[%emt 0:00:00]} 48. Nb2 {[%emt 0:01:21]} Bd2 {[%emt 0:00:58]} 49. Nc4 {[%emt 0:00:31]} Bc3 {[%emt 0:00:07]} 50. Kg2 {[%emt 0:00:10]} Kd5 {[%emt 0:00:50]} 51. Na3 {[%emt 0:01:04]} Bc6 {[%emt 0:02:22]} 52. Bd3 {[%emt 0:00:32]} h6 {[%emt 0:00:56]} 53. Nb5 {[%emt 0:00:32]} Bd2 {[%emt 0:01:07]} 54. Nc7+ {[%emt 0:00:27]} Kd4 {[%emt 0:01:36]} 55. Bc2 {[%emt 0:00:30]} Kc3 {[%emt 0:00:23]} 56. Bd1 {[%emt 0:00:05]} Kb4 {[%emt 0:00:50]} 57. Na6+ {[%emt 0:00:21]} Ka3 {[%emt 0:00:41]} 58. Nc5 {[%emt 0:00:10]} Be3 {[%emt 0:01:02]} 59. Nb3 {[%emt 0:01:11]} Bb6 {[%emt 0:00:40]} 60. Nd2 {[%emt 0:00:15]} Kb4 {[%emt 0:00:29]} 61. Kf1 {[%emt 0:00:34]} Bxa4 {[%emt 0:01:54]} 62. Bxa4 {[%emt 0:00:36]} Kxa4 {[%emt 0:00:02]} 63. Ke1 {[%emt 0:00:24]} Kb4 {[%emt 0:01:19]} 64. Kd1 {[%emt 0:00:15]} Kc3 {[%emt 0:00:48]} 65. Nb1+ {[%emt 0:00:28]} Kd3 {[%emt 0:00:57]} 66. Na3 {[%emt 0:00:39]} Be3 {[%emt 0:01:21]} 67. Nc2 {[%emt 0:00:11]} Bc5 {[%emt 0:00:14]} 68. Na1 {[%emt 0:01:08]} Ke3 {[%emt 0:00:41]} 69. Nb3 {[%emt 0:00:18]} Bb4 {[%emt 0:00:05]} 0-1

[Event "9th Bangabandhu Team Mixed 2021"]
[Site "Dhaka"]
[Date "2021.04.08"]
[Round "5.8"]
[White "Sultana, Zakia"]
[Black "Kazi Zarin, Tasnim"]
[Result "0-1"]
[ECO "A46"]
[WhiteElo "1786"]
[BlackElo "1790"]
[Annotator "NA RC"]
[PlyCount "104"]
[EventDate "2021.04.04"]
[EventType "team-tourn"]
[EventCountry "BAN"]
[SourceTitle "playchess.com"]
[Source "ChessBase"]
[SourceQuality "1"]
[TimeControl "5400+30"]

1. d4 {[%emt 0:00:00]} Nf6 {[%emt 0:00:00]} 2. Nf3 {[%emt 0:00:00]} c6 {[%emt 0:00:00]} 3. c3 {[%emt 0:00:56]} d6 {[%emt 0:00:31]} 4. Bf4 {[%emt 0:00:32]} Qb6 {[%emt 0:01:57]} 5. Qc1 {[%emt 0:01:30]} Bf5 {[%emt 0:00:32]} 6. Nbd2 {[%emt 0:00:20]} h6 {[%emt 0:01:25]} 7. h3 {[%emt 0:00:25]} Nbd7 {[%emt 0:01:17]} 8. e3 {[%emt 0:00:20]} g5 {[%emt 0:02:39]} 9. Bh2 {[%emt 0:00:56]} Bg7 {[%emt 0:00:41]} 10. Be2 {[%emt 0:00:28]} Bg6 {[%emt 0:03:46]} 11. Bc4 {[%emt 0:07:55]} Qc7 {[%emt 0:09:13]} 12. a4 {[%emt 0:02:30]} O-O {[%emt 0:07:10]} 13. O-O {[%emt 0:01:33]} c5 {[%emt 0:01:17]} 14. Re1 {[%emt 0:01:26]} Nb6 {[%emt 0:06:21]} 15. Bf1 {[%emt 0:03:53]} a6 {[%emt 0:05:09]} 16. a5 {[%emt 0:05:46]} Nbd7 {[%emt 0:00:15]} 17. Qd1 {[%emt 0:02:20]} Qc6 {[%emt 0:05:47]} 18. Qb3 {[%emt 0:02:46]} Ne4 {[%emt 0:03:33]} 19. Nxe4 {[%emt 0:00:52]} Bxe4 {[%emt 0:00:11]} 20. Nd2 {[%emt 0:00:29]} Bg6 {[%emt 0:02:26]} 21. Be2 {[%emt 0:03:59]} d5 {[%emt 0:03:22]} 22. dxc5 {[%emt 0:07:41]} Nxc5 {[%emt 0:01:07]} 23. Qa3 {[%emt 0:03:32]} e5 {[%emt 0:03:30]} 24. Red1 {[%emt 0:01:28]} Rad8 {[%emt 0:01:50]} 25. Nf3 {[%emt 0:01:33]} Rfe8 {[%emt 0:01:54]} 26. Rac1 {[%emt 0:03:07]} Kh7 {[%emt 0:01:44]} 27. b4 {[%emt 0:00:44]} Ne4 {[%emt 0:00:36]} 28. Qb3 {[%emt 0:02:53]} f5 {[%emt 0:04:32]} 29. b5 {[%emt 0:01:59]} Qe6 {[%emt 0:02:53]} 30. c4 {[%emt 0:03:49]} d4 {[%emt 0:01:27]} 31. bxa6 {[%emt 0:03:35]} bxa6 {[%emt 0:03:13]} 32. exd4 {[%emt 0:02:02]} exd4 {[%emt 0:00:11]} 33. Bd3 {[%emt 0:00:52]} Nc5 {[%emt 0:01:35]} 34. Qb6 {[%emt 0:02:41]} Nxd3 {[%emt 0:01:29]} 35. Rxd3 {[%emt 0:00:43]} f4 {[%emt 0:00:27]} 36. Rdd1 {[%emt 0:01:34]} Rd6 {[%emt 0:01:03]} 37. Qb4 {[%emt 0:01:34]} d3 {[%emt 0:03:57]} 38. c5 {[%emt 0:03:40]} Rc6 {[%emt 0:03:45]} 39. Kh1 {[%emt 0:05:10]} Rd8 {[%emt 0:02:49]} 40. Re1 {[%emt 0:01:39]} Qd5 {[%emt 0:01:38]} 41. Nd2 {[%emt 0:02:28]} Rdc8 {[%emt 0:01:02]} 42. Re7 {[%emt 0:06:54]} Rxc5 {[%emt 0:02:24]} 43. Rxc5 {[%emt 0:00:22]} Qxc5 {[%emt 0:02:09]} 44. Qb7 {[%emt 0:01:14]} Rg8 {[%emt 0:01:22]} 45. Ne4 {[%emt 0:00:56]} Bxe4 {[%emt 0:01:01]} 46. Qxe4+ {[%emt 0:00:04]} Kh8 {[%emt 0:00:10]} 47. Bg1 {[%emt 0:02:43]} Rd8 {[%emt 0:02:32]} 48. f3 {[%emt 0:00:35]} Qd6 {[%emt 0:01:10]} 49. Qb7 {[%emt 0:07:17]} Qf6 {[%emt 0:01:56]} 50. Rf7 {[%emt 0:01:54]} Qxf7 {[%emt 0:01:00]} 51. Qxf7 {[%emt 0:01:17]} d2 {[%emt 0:00:00]} 52. h4 {[%emt 0:00:29]} d1=Q {[%emt 0:00:00]} 0-1